[Event "Summer Chess Classic-B 2022"]
[Site "Saint Louis"]
[Date "2022.06.10"]
[Round "9.2"]
[White "Zhou, Jianchao"]
[Black "Checa, Nicolas"]
[Result "0-1"]
[ECO "D32"]
[WhiteElo "2589"]
[BlackElo "2533"]
[Annotator "TA"]
[PlyCount "111"]
[EventDate "2022.05.31"]
[EventType "tourn"]
[EventCountry "USA"]
[SourceTitle "playchess.com"]
[Source "ChessBase"]
[SourceQuality "1"]
[TimeControl "40/5400+30:1800+30"]

{[%evp 21,111,24,31,24,29,33,40,14,41,46,54,47,44,35,24,28,89,93,77,45,165,167,228,234,214,208,163,144,146,156,257,158,149,102,101,74,127,29,13,0,0,0,0,0,0,0,62,8,14,43,55,62,45,49,115,8,8,8,8,8,8,8,8,8,8,8,8,8,8,0,0,0,8,0,0,0,0,0,0,-472,0,0,0,0,0,0,0,-8,0,0,0,-10]} 1. c4 {[%emt 0:00:02]} e6 {[%emt 0:03:15]} 2. Nf3 {[%emt 0:02:12]} Nf6 {[%emt 0:00:20]} 3. Nc3 {[%emt 0:00:41]} d5 {[%emt 0:00:07]} 4. e3 {[%emt 0:01:18]} c5 {[%emt 0:02:47]} 5. cxd5 {[%emt 0:00:11]} exd5 {[%emt 0:00:09]} 6. d4 {[%emt 0:01:11]} Nc6 {[%emt 0:00:17]} 7. Bb5 {[%emt 0:00:34]} a6 {[%emt 0:00:21]} 8. Bxc6+ {[%emt 0:00:12]} bxc6 {[%emt 0:00:05]} 9. O-O {[%emt 0:01:23]} Bd6 {[%emt 0:02:08]} 10. dxc5 {[%emt 0:01:11]} Bxc5 {[%emt 0:00:03]} 11. b3 {[%emt 0:02:34]} O-O {[%emt 0:00:13]} 12. Bb2 {[%emt 0:00:36] D32: Tarrasch Defence: Sidelines and lines without g3.} Bd6 {[%emt 0:03:41]} 13. Rc1 {[%emt 0:02:22]} Bg4 {[%emt 0:06:03]} 14. Ne2 {[%emt 0:11:41] White is slightly better.} Bxf3 {[%emt 0:09:26]} 15. gxf3 {[%emt 0:01:12]} Rc8 {[%emt 0:00:05]} 16. Ng3 {[%emt 0:12:29]} Re8 {[%emt 0:00:46]} 17. Qd3 {[%emt 0:02:36]} a5 {[%emt 0:04:42]} 18. Rc2 {[%emt 0:04:52]} Be5 {[%emt 0:12:08] [#]} (18... Re6 $11 {keeps the balance.}) 19. Bxe5 $146 {[%emt 0:05:34]} ({Predecessor:} 19. Ba3 Re6 20. f4 Bb8 21. Rfc1 Nd7 22. Qxd5 cxd5 23. Rxc8 Re8 24. Rxd8 Rxd8 25. Nf5 {1-0 (33) Johansen,D (2409)-Dale,A (2321) Canberra 2015}) 19... Rxe5 {[%emt 0:00:11]} 20. Rfc1 {[%emt 0:00:12]} (20. Qd4 $5 {[%cal Rd4e5]} Qd6 21. Qa4 $14) 20... Re6 {[%emt 0:01:29] [#]} (20... Qb6 $1 $14) 21. Ne2 $1 $18 {[%emt 0:06:55]} Nh5 {[%emt 0:05:44]} (21... Ne8 $142) 22. Nd4 {[%emt 0:02:22][%csl LRc6,LRe6]} Rg6+ {[%emt 0:01:42]} 23. Kf1 {[%emt 0:00:24]} Qh4 {[%emt 0:02:47]} 24. Rxc6 {[%emt 0:19:05]} Qh3+ {[%emt 0:03:11]} 25. Ke2 {[%emt 0:02:15]} Rf8 {[%emt 0:01:58]} (25... Rgxc6 $16 {was necessary.} 26. Rxc6 Rf8) 26. Qf5 {[%emt 0:16:40]} Qxh2 {[%emt 0:00:35]} 27. Rxg6 {[%emt 0:02:11]} (27. Qxd5 $6 Ng3+ 28. Kd3 Rxc6 29. Qxc6 Nh1 $11) (27. Kd3 $142 {Rc8 is the strong threat.} Rxc6 28. Nxc6 (28. Rxc6 g6 $14)) 27... hxg6 $16 {[%emt 0:01:46]} 28. Qg4 {[%emt 0:00:04] Against Ng3+} ({Much worse is} 28. Qxd5 $6 Re8 29. Qb5 (29. Qxa5 Nf4+ 30. Kd1 Nd3 $15) 29... Rxe3+ 30. Kxe3 Qf4+ 31. Kd3 Qxc1 $11) 28... Kh7 {[%emt 0:01:21]} (28... Re8 $142) 29. f4 {[%emt 0:01:03]} (29. a4 $16) 29... Re8 $11 {[%emt 0:03:47] White must now prevent ...Nxf4+.} 30. Qf3 {[%emt 0:00:25]} Nxf4+ $1 {[%emt 0:02:12]} 31. Kd2 {[%emt 0:00:34]} Nh5 {[%emt 0:00:35]} 32. Qxf7 {[%emt 0:00:41]} Nf6 {[%emt 0:00:36]} 33. Ke2 {[%emt 0:00:21] aiming for Rc6.} Ne4 {[%emt 0:08:33]} ({Resist} 33... Rxe3+ 34. Kxe3 Qh6+ 35. f4 Qh3+ 36. Nf3 d4+ 37. Kxd4 (37. Kf2 $2 Ne4+ 38. Ke2 Qg2+ 39. Kd3 Qxf3+ 40. Kxd4 Nd6 $19) 37... Qxf3 38. Rc7 Qxf4+ 39. Kc5 Qe5+ 40. Kc6 $18) (33... Qg2 $11) 34. Rc7 {[%emt 0:00:22]} (34. a3 $1 $14) 34... Qe5 $1 {[%emt 0:03:49]} 35. Qf4 {[%emt 0:01:04] And now Qxe5 would win.} Qxf4 {[%emt 0:02:25]} 36. exf4 $14 {[%emt 0:00:03][%mdl 4096] Endgame KRN-KRN} Nc3+ {[%emt 0:00:09]} 37. Kd2 {[%emt 0:00:19]} Nxa2 {[%emt 0:00:07] [#]} ({Black should try} 37... Ne4+ $1 $14 38. Ke2 Nc3+ 39. Kf3 Nxa2) 38. f3 {[%emt 0:00:31]} (38. Ra7 $1 $16) 38... Ra8 $1 $11 {[%emt 0:03:23]} 39. Ne6 {[%emt 0:00:25]} Kh6 {[%emt 0:01:37]} 40. Nxg7 {[%emt 0:01:11]} Rf8 {[%emt 0:02:23]} 41. Ne6 {[%emt 0:19:56]} Rf6 {[%emt 0:00:07]} 42. Re7 {[%emt 0:01:53]} Nb4 {[%emt 0:03:44]} 43. Re8 {[%emt 0:00:16][%cal Re8h8]} Kh7 {[%emt 0:01:16] Inhibits Rh8+.} 44. Ke3 {[%emt 0:00:14]} Nc2+ {[%emt 0:00:59]} 45. Kd3 {[%emt 0:02:03]} Ne1+ {[%emt 0:00:08]} 46. Kd4 {[%emt 0:00:42]} Ng2 {[%emt 0:01:16]} 47. Kxd5 {[%emt 0:08:16]} Nxf4+ {[%emt 0:00:18]} 48. Nxf4 {[%emt 0:00:30]} Rxf4 {[%emt 0:00:07] KR-KR} 49. Re3 {[%emt 0:00:19]} Kh6 {[%emt 0:01:03]} 50. Re5 $2 {[%emt 0:00:51][%mdl 8192]} (50. Rc3 $11) 50... Rb4 $2 {[%emt 0:01:02]} (50... Rxf3 $19 {Threatens to win with ...Rf5.} 51. Ke4 Rxb3 52. Rxa5 g5) 51. Re3 {[%emt 0:00:26] The position is equal.} g5 {[%emt 0:01:25]} 52. Ke5 {[%emt 0:00:32]} Kh5 {[%emt 0:01:04]} 53. Kf6 {[%emt 0:00:23]} Rf4+ {[%emt 0:01:04]} 54. Kg7 {[%emt 0:00:14]} Kh4 {[%emt 0:02:06]} 55. Kg6 {[%emt 0:00:17]} Rb4 {[%emt 0:00:03]} 56. Re6 {[%emt 0:01:10][%mdl 32768] What a bad dream for Black.  Weighted Error Value: White=0.34/Black=0.26 (precise) . Loss on time!?} 0-1

[Event "Summer Chess Classic-B 2022"]
[Site "Saint Louis"]
[Date "2022.06.10"]
[Round "9.4"]
[White "Antipov, Mikhail Al."]
[Black "Ali Marandi, Cemil Can"]
[Result "1-0"]
[ECO "C77"]
[WhiteElo "2592"]
[BlackElo "2532"]
[Annotator "TA"]
[PlyCount "115"]
[EventDate "2022.05.31"]
[EventType "tourn"]
[EventCountry "USA"]
[SourceTitle "playchess.com"]
[Source "ChessBase"]
[SourceQuality "1"]
[TimeControl "40/5400+30:1800+30"]

{[%evp 16,115,1,0,6,0,11,0,15,0,0,0,0,0,4,6,24,-14,0,0,0,0,0,22,16,-5,-10,0,27,33,32,31,38,31,69,71,72,34,41,38,86,78,102,94,110,100,96,95,114,103,104,110,110,105,98,90,127,127,127,127,127,127,181,163,360,198,204,127,127,126,127,118,126,124,124,128,120,0,102,0,93,50,41,47,206,197,226,207,417,379,319,268,268,212,873,870,846,839,29996,-325,29997,29998]} 1. e4 {[%emt 0:00:50]} e5 {[%emt 0:00:01]} 2. Nf3 {[%emt 0:00:08]} Nc6 {[%emt 0:00:05]} 3. Bb5 {[%emt 0:00:03]} a6 {[%emt 0:00:12]} 4. Ba4 {[%emt 0:00:04]} Nf6 {[%emt 0:00:42]} 5. d3 {[%emt 0:00:47]} d6 {[%emt 0:00:54]} 6. c3 {[%emt 0:00:21]} g6 {[%emt 0:01:09]} 7. Nbd2 {[%emt 0:11:28]} Bg7 {[%emt 0:00:19]} 8. Nf1 {[%emt 0:00:37]} O-O {[%emt 0:02:17]} 9. Ng3 {[%emt 0:01:10]} Re8 {[%emt 0:01:26] C77: Ruy Lopez: 3...a6 4 Ba4 Nf6, unusual lines.} 10. h3 {[%emt 0:12:11]} h6 {[%emt 0:02:53]} 11. O-O {[%emt 0:02:28]} d5 {[%emt 0:00:49] The position is equal.} 12. Re1 {[%emt 0:07:23] [#]} dxe4 $146 {[%emt 0:03:29]} ({Predecessor:} 12... b5 13. Bb3 Bb7 14. Qe2 dxe4 15. dxe4 Na5 16. Bc2 Qe7 17. b4 Nc4 18. Nd2 Nxd2 19. Bxd2 {1-0 (93) Nakamura,H (2736)-Esipenko,A (2716) Chess.com INT 2021}) 13. dxe4 {[%emt 0:01:08]} Qxd1 {[%emt 0:00:10]} 14. Rxd1 {[%emt 0:01:06]} b5 {[%emt 0:00:11]} 15. Bc2 {[%emt 0:00:23]} Bf8 {[%emt 0:00:51]} 16. Nd2 {[%emt 0:16:14]} Nd7 {[%emt 0:03:20]} (16... Kg7 {is interesting.} 17. Nf3 Bd6 18. Be3 Be6) 17. Ngf1 {[%emt 0:01:52]} Nb6 {[%emt 0:01:23]} 18. Ne3 {[%emt 0:01:24]} Be6 {[%emt 0:00:37]} 19. Nf3 {[%emt 0:05:22]} Red8 {[%emt 0:05:28]} 20. Rxd8 {[%emt 0:01:33]} Rxd8 {[%emt 0:00:03]} 21. Ng4 {[%emt 0:00:13]} Bxg4 {[%emt 0:01:19]} 22. hxg4 {[%emt 0:00:13]} Kg7 {[%emt 0:00:20]} 23. Kf1 {[%emt 0:02:58]} a5 {[%emt 0:05:31]} 24. Ke2 {[%emt 0:02:28]} Bc5 {[%emt 0:01:50]} 25. a4 {[%emt 0:10:39]} b4 {[%emt 0:04:16]} 26. Bb3 {[%emt 0:13:26]} (26. Bd3 $5 {[%cal Rd3b5]}) 26... bxc3 {[%emt 0:02:26]} 27. bxc3 {[%emt 0:00:02]} f6 {[%emt 0:01:41]} (27... Rb8 $14) 28. Ne1 $16 {[%emt 0:02:39]} Bd4 {[%emt 0:09:06]} 29. Bb2 {[%emt 0:02:29] Nd3 is the strong threat.} Bxf2 {[%emt 0:01:41]} 30. Nd3 {[%emt 0:00:01]} Bh4 {[%emt 0:00:12]} 31. Nc5 {[%emt 0:00:09]} Kh7 {[%emt 0:02:08]} 32. Ne6 {[%emt 0:00:22][%csl LRc7,LRd8]} Rb8 {[%emt 0:01:15][%cal Ob6a4]} 33. Ba3 {[%emt 0:00:41]} Nd8 {[%emt 0:11:54]} 34. Nxc7 {[%emt 0:00:23] White is more active.} Rc8 {[%emt 0:00:02]} 35. Nb5 {[%emt 0:00:45]} Nc4 {[%emt 0:00:25]} 36. Rd1 {[%emt 0:03:30]} Ne6 {[%emt 0:01:29]} 37. Rd7+ {[%emt 0:00:15]} Kh8 {[%emt 0:00:01]} 38. Be7 $1 {[%emt 0:00:55][%cal Og2g3] And now g3! would win.} Nf4+ {[%emt 0:05:30]} (38... Nc5 $16 39. Bxc5 Rxc5) 39. Kf3 $18 {[%emt 0:00:25]} Ne6 $2 {[%emt 0:00:02]} (39... Bg5 {keeps fighting.} 40. g3 Ne6) 40. g3 {[%emt 0:00:50]} (40. Na7 $142 Nb6 41. Nxc8 (41. Bxe6 Rxc3+ 42. Ke2 Nxd7 $11) (41. Bxf6+ $2 Bxf6 42. Nxc8 Ng5+ 43. Ke3 Nxd7 $19) 41... Ng5+ 42. Ke2 Nxd7 43. Bd5) 40... Bg5 {[%emt 0:01:19][%cal Oe6d4]} 41. Ke2 {[%emt 0:09:46] aiming for Na7.} Nc5 {[%emt 0:03:22]} 42. Bxc5 {[%emt 0:01:43]} Rxc5 {[%emt 0:00:01]} 43. Nc7 {[%emt 0:01:01] Threatens to win with Rd8+.} Nb6 {[%emt 0:04:50][%csl LRc3,LRd7]} 44. Rd8+ {[%emt 0:00:06]} Kh7 {[%emt 0:00:05]} 45. Bg8+ {[%emt 0:00:11]} Kh8 {[%emt 0:00:02]} 46. Bb3+ {[%emt 0:16:12]} Kh7 {[%emt 0:00:01]} 47. Bg8+ {[%emt 0:00:16]} Kh8 {[%emt 0:00:01]} 48. Be6+ {[%emt 0:00:09]} Kh7 {[%emt 0:00:21]} 49. Nb5 {[%emt 0:00:02]} h5 $2 {[%emt 0:03:50]} (49... Nxa4 $2 50. Rd7+ Kh8 51. Nd6 $18 (51. Rd8+ Kg7 $16)) (49... f5 $14 50. Rd6 Nxa4 51. Rd7+ Kh8 52. exf5 gxf5) 50. Rb8 {[%emt 0:01:28]} ({Resist} 50. gxh5 $6 Rc6 51. Nd6 gxh5 $16) 50... Nxa4 {[%emt 0:00:35][%cal Oc5b5] White must now prevent ...Rxb5!} 51. Rb7+ {[%emt 0:00:04]} Kh6 $2 {[%emt 0:00:20] [#]} (51... Kh8 {was worth a try.} 52. c4 Rc6) 52. Nd6 $1 {[%emt 0:00:03][%cal Od6f5]} Nxc3+ {[%emt 0:02:05]} 53. Kd3 {[%emt 0:02:02][%cal Od6f5] Intending Nf5+! and mate.} Bc1 {[%emt 0:00:02]} 54. Nf7+ {[%emt 0:00:05]} Kg7 $2 {[%emt 0:00:01]} (54... Kh7 55. gxh5 gxh5 56. Nd6+ Kh8) 55. Nxe5+ {[%emt 0:00:07][%mdl 64] Discovered Attack} Kh6 {[%emt 0:00:10]} 56. g5+ {[%emt 0:00:58]} fxg5 {[%emt 0:00:29] [#]} 57. Ng4+ $1 {[%emt 0:00:36][%mdl 512]} hxg4 {[%emt 0:00:09] [#]} 58. Bg8 $1 {[%emt 0:00:02] Weighted Error Value: White=0.15 (very precise) /Black=0.34} 1-0

[Event "Summer Chess Classic-B 2022"]
[Site "Saint Louis"]
[Date "2022.06.10"]
[Round "9.5"]
[White "Yoo, Christopher Woojin"]
[Black "Burke, John M"]
[Result "1-0"]
[ECO "D31"]
[WhiteElo "2535"]
[BlackElo "2579"]
[Annotator "TA"]
[PlyCount "123"]
[EventDate "2022.05.31"]
[EventType "tourn"]
[EventCountry "USA"]
[SourceTitle "playchess.com"]
[Source "ChessBase"]
[SourceQuality "1"]
[TimeControl "40/5400+30:1800+30"]

{[%evp 16,123,0,0,0,0,0,0,0,0,0,0,0,0,0,0,0,0,0,0,0,0,0,0,0,0,0,0,0,0,0,0,0,0,0,0,0,-54,0,5,0,0,10,0,0,0,0,0,0,0,29,23,72,85,121,87,87,73,73,69,102,88,90,96,207,193,200,200,186,191,202,200,212,209,223,223,214,200,213,211,213,207,248,245,245,239,267,267,378,376,339,338,502,502,502,502,502,502,468,480,487,486,657,651,1212,1126,29968,29969,5922,5122]} 1. d4 {[%emt 0:00:07]} d5 {[%emt 0:00:10]} 2. c4 {[%emt 0:00:04]} e6 {[%emt 0:00:05]} 3. Nc3 {[%emt 0:00:04]} c6 {[%emt 0:00:05]} 4. e4 {[%emt 0:00:05]} dxe4 {[%emt 0:00:04]} 5. Nxe4 {[%emt 0:00:03]} Bb4+ {[%emt 0:00:04]} 6. Bd2 {[%emt 0:00:04][%cal Bc1d2,Bd2b4,Bb4d6,Bd6e5][%mdl 32]} Qxd4 {[%emt 0:00:06]} 7. Bxb4 {[%emt 0:00:05]} Qxe4+ {[%emt 0:00:05]} 8. Be2 {[%emt 0:00:30]} Na6 {[%emt 0:01:16]} 9. Bd6 {[%emt 0:00:00]} Qxg2 {[%emt 0:01:29] D31: Queen's Gambit Declined: Semi-Slav without ...Nf6 (+ Marshall Gambit and Noteboom) and Exchange Variation lines without ...Nf6.} 10. Qd2 $1 {[%emt 0:00:00]} Nf6 {[%emt 0:02:45]} (10... Qxh1 11. O-O-O e5 12. Bxe5 $18) 11. Bf3 {[%emt 0:00:26]} Qg6 {[%emt 0:00:04] The position is equal.} 12. O-O-O {[%emt 0:00:59]} e5 $1 {[%emt 0:01:56]} (12... Ne4 $2 13. Bxe4 Qf6 14. Nf3 $18) 13. Bxe5 {[%emt 0:00:07][%csl Gd1][%cal Rd2d8] [#] A strong pair of Bishops.} Be6 {[%emt 0:01:27]} 14. Ne2 {[%emt 0:00:09][%cal Bg1e2,Be2c3,Bc3e4,Be4d6][%mdl 32]} Qf5 {[%emt 0:01:18]} 15. Bf4 {[%emt 0:00:25]} Qc5 {[%emt 0:01:07]} 16. Nc3 {[%emt 0:01:25]} Qxc4 {[%emt 0:06:23] [#] aiming for ...Nb4.} 17. Be2 {[%emt 0:00:11] [#]} Qb4 $146 {[%emt 0:01:42]} ({Predecessor:} 17... Qc5 18. Bd6 Qa5 19. Bxa6 Qxa6 20. Ba3 Nd7 21. Rhe1 O-O-O 22. Be7 Bg4 23. Bxd8 Rxd8 {0-1 (29) Grigoryan,A (2506)-Yudin,S (2562) Moscow 2009}) 18. Bxa6 {[%emt 0:01:32]} bxa6 {[%emt 0:00:04]} 19. Bd6 {[%emt 0:01:08]} Qb7 {[%emt 0:01:25]} 20. Bc5 {[%emt 0:14:31]} Nd5 {[%emt 0:01:39]} 21. Ne4 {[%emt 0:02:05] Hoping for Nd6+.} O-O-O $1 {[%emt 0:00:15]} 22. Nd6+ $1 {[%emt 0:00:11]} Rxd6 $1 {[%emt 0:00:04]} 23. Bxd6 {[%emt 0:00:04]} Rd8 {[%emt 0:02:24]} 24. Ba3 {[%emt 0:06:06]} Bg4 {[%emt 0:08:11]} 25. Rde1 {[%emt 0:02:20]} Bf5 {[%emt 0:02:52]} 26. Re5 {[%emt 0:04:03]} (26. Qd4 $11) 26... Bg6 {[%emt 0:01:42]} (26... Qd7 $1 $15) 27. Qd4 {[%emt 0:12:15]} f6 {[%emt 0:19:14]} 28. Re2 {[%emt 0:05:00]} Qc7 {[%emt 0:18:28] Threatens to win with ...Nf4.} 29. Rd2 {[%emt 0:02:01]} Re8 {[%emt 0:01:14]} 30. b3 {[%emt 0:05:36]} Kb7 {[%emt 0:05:33] White must now prevent ...Re4.} 31. f3 {[%emt 0:02:20] Against Re4} Re3 {[%emt 0:04:36]} 32. Rf1 {[%emt 0:02:05]} Qc8 {[%emt 0:01:16]} 33. Kb2 {[%emt 0:03:05]} Qh3 {[%emt 0:06:09]} (33... Qc7 $11) 34. Rc1 $16 {[%emt 0:05:39][%cal Oc1c6] Rxc6! is the strong threat.} Qf5 {[%emt 0:00:25][%cal Oe3c3]} 35. Bf8 {[%emt 0:01:55]} Re6 {[%emt 0:05:07]} ({Less strong is} 35... Rxf3 36. Rxc6 Qe5 37. Rc5 $16) 36. Bxg7 {[%emt 0:04:53]} Qxf3 {[%emt 0:00:29]} 37. Qc5 {[%emt 0:04:28]} Bd3 {[%emt 0:05:13]} 38. Bf8 {[%emt 0:01:50] And now Bd6 would win. The board is on fire.} Qe3 {[%emt 0:02:20]} 39. Qa5 {[%emt 0:02:25]} Qxd2+ {[%emt 0:00:43]} 40. Qxd2 $18 {[%emt 0:00:05]} Re2 {[%emt 0:00:05]} 41. Qxe2 {[%emt 0:30:17]} Bxe2 {[%emt 0:30:03][%mdl 4096] Endgame KRB-KBN} 42. Rg1 {[%emt 0:00:30]} Bd3 {[%emt 0:00:00]} 43. Rg7+ {[%emt 0:00:00]} Kb6 {[%emt 0:00:00]} 44. Bd6 {[%emt 0:00:00]} Bg6 {[%emt 0:00:00]} 45. b4 {[%emt 0:00:00] Strongly threatening Bc5+.} a5 {[%emt 0:00:00]} 46. bxa5+ {[%emt 0:00:00]} Kxa5 {[%emt 0:00:00]} 47. Rxa7+ {[%emt 0:00:00]} Kb6 {[%emt 0:00:00]} 48. Ra8 {[%emt 0:00:00]} c5 {[%emt 0:00:00]} 49. Rc8 {[%emt 0:00:00]} Nb4 {[%emt 0:00:00]} 50. a3 {[%emt 0:00:00][%cal Ba2a3,Ba3a4][%mdl 32]} ({And not} 50. Bxc5+ Kb7 51. Bxb4 Kxc8 $11) 50... Nc6 {[%emt 0:00:00]} 51. Kc3 {[%emt 0:00:00]} Kb5 {[%emt 0:00:00]} (51... Be4 {keeps fighting.} 52. a4 f5) 52. a4+ {[%emt 0:00:00]} Kb6 {[%emt 0:00:00]} 53. Rf8 {[%emt 0:00:00]} Nb4 {[%emt 0:00:00]} (53... Ne5 {was necessary.} 54. Rxf6 Nd7) 54. Rb8+ {[%emt 0:00:00]} Ka7 {[%emt 0:00:00]} 55. Rb5 {[%emt 0:00:00]} Nd5+ {[%emt 0:00:00]} 56. Kb3 {[%emt 0:00:00]} Bf7 {[%emt 0:00:00]} 57. Rxc5 {[%emt 0:00:00]} Ka6 {[%emt 0:00:00]} 58. a5 {[%emt 0:00:00]} f5 {[%emt 0:00:00]} 59. Kc4 {[%emt 0:00:00]} Nc7+ {[%emt 0:02:00]} 60. Kc3 {[%emt 0:00:00]} Nd5+ {[%emt 0:01:43]} 61. Kd4 {[%emt 0:00:00]} Nb4 {[%emt 0:00:08]} 62. Rc7 {[%emt 0:00:00] Weighted Error Value: White=0.03 (flawless) /Black=0.32} 1-0